Cogmind - Beta 10.2 @@@ ROGUE MODE // 2021.05.11 @ 19:55:10 Player: ChromeKnight Result: Destroyed by L-31 Rogue with Katana Performance ------------- Evolutions (1) 500 Regions Visited (3) 600 Robots Destroyed (26) 130 Value Destroyed (616) 616 Prototype IDs (1) 20 Alien Tech Used (0) 0 Bonus (0) 0 TOTAL SCORE: 1866 Bonus ------- None Cogmind --------- Core Integrity 0/400 Matter 299/300 Energy 100/100 System Corruption 0% Temperature Cool (0) Movement Treading (180) Ox1 Location -9/Mines Parts ------- > --- POWER (1) -------- (None) > --- PROPULSION (2) --- Light Treads > --- UTILITY (4) ------ Large Storage Unit > --- WEAPON (2) ------- Heavy Assault Rifle Heavy Assault Rifle > --- INVENTORY (10) --- Light Ion Engine Light Ion Engine Light Nuclear Core VTOL Module VTOL Module Small Storage Unit Visual Processing Unit Improved Sensor Array Hacking Suite Peak State ------------ > --- POWER ------------ Ion Engine > --- PROPULSION ------- Aluminum Leg Aluminum Leg > --- UTILITY ---------- Improved Heat Sink Large Storage Unit Improved Targeting Computer Weapon Shielding > --- WEAPON ----------- Improved EM Shotgun Small Laser > --- INVENTORY -------- Light Ion Engine Light Ion Engine Light Nuclear Core VTOL Module VTOL Module Small Storage Unit Visual Processing Unit Improved Sensor Array Hacking Suite [Rating: 15] Favorites ----------- Power Light Ion Engine Engine Light Ion Engine Propulsion Aluminum Leg Treads Light Treads Leg Aluminum Leg Utility Improved Heat Sink Device Improved Heat Sink Storage Small Storage Unit Processor Improved Targeting Computer Protection Weapon Shielding Weapon Assault Rifle Energy Gun Small Laser Ballistic Gun Assault Rifle Build | -11 -10 -9 -9 ------- Run | Scr Mat Mat Min Slots Evolved 2 | . . 2 . Power . | . . . . Propulsion . | . . . . Utility 2 | . . 2 . Weapon . | . . . . Parts Attached 23 | 6 2 15 . Power 2 | 1 . 1 . Engine 2 | 1 . 1 . Core . | . . . . Reactor . | . . . . Propulsion 7 | 2 1 4 . Treads 2 | . . 2 . Leg 5 | 2 1 2 . Wheel . | . . . . Hover . | . . . . Flight . | . . . . Utility 6 | 1 1 4 . Device 1 | . 1 . . Storage 2 | 1 . 1 . Processor 1 | . . 1 . Hackware . | . . . . Protection 2 | . . 2 . Artifact . | . . . . Weapon 8 | 2 . 6 . Energy Gun 3 | . . 3 . Energy Cannon . | . . . . Ballistic Gun 5 | 2 . 3 . Ballistic Cannon . | . . . . Launcher . | . . . . Special Weapon . | . . . . Impact Weapon . | . . . . Slashing Weapon . | . . . . Piercing Weapon . | . . . . Special Melee Weapon . | . . . . Unidentified Prototypes 1 | . . 1 . Parts Lost 11 | . . 10 1 Power 1 | . . 1 . Propulsion 2 | . . 2 . Utility 4 | . . 3 1 Weapon 4 | . . 4 . Highest Loss Streak 7 | . . 7 1 Average Slot Usage (%) 85 | . 91 84 61 Engine 9 | . 14 7 . Treads 3 | . . 2 20 Leg 19 | . 28 16 . Device 6 | . 6 8 . Storage 12 | . 14 11 11 Processor 3 | . . 7 . Protection 5 | . . 9 8 Energy Gun 2 | . . 6 . Ballistic Gun 20 | . 28 13 22 Naked Turns . | . . . . Heaviest Build 27 | 11 12 27 25 Greatest Support 40 | 20 20 40 40 Greatest Overweight (x) 6 | 1 . 6 1 Average Overweight (x) . | . . . . Largest Inventory Capacity 10 | 6 6 10 10 Average Capacity 7 | 5 6 9 10 Most Carried 9 | . 6 9 9 Average Carried 5 | . 3 8 9 Final Capacity 10 | 6 6 10 10 Final Carried 9 | . 5 9 9 Class Distribution -------------------- 67% | Mutant 32% | Scavenger-Mutant Dominant Class ---------------- Mutant | -10/Materials Scavenger-Mutant | -9/Materials Scavenger-Mutant | -9/Mines Resources | -11 -10 -9 -9 ----------- Run | Scr Mat Mat Min Matter Collected 817 | 202 213 402 . Remotely . | . . . . Salvage Created 1088 | . 276 812 . Parts 63 | . 20 43 . Haulers Intercepted 3 | . 1 2 . Recyclers Shooed 5 | . 2 3 . Parts Field Recycled . | . . . . Retrieved Matter . | . . . . Parts Self-Destructed . | . . . . Prevented . | . . . . Kills | -11 -10 -9 -9 ------- Run | Scr Mat Mat Min Combat Hostiles Destroyed 18 | . 7 11 . Guns 18 | . 7 11 . Classes Destroyed 7 | . 5 2 . Hauler 3 | . 1 2 . Recycler 3 | . 1 2 . Operator 1 | . . 1 . Watcher 1 | . 1 . . Swarmer 5 | . 5 . . Grunt 8 | . 2 6 . Sentry 5 | . . 5 . Best Kill Streak 6 | . 3 6 . Combat Bots Only 3 | . 3 3 . Max Kills in Single Turn 1 | . 1 1 . Gunslinging . | . . . . Exploded . | . . . . Melee . | . . . . Uniques/NPCs Destroyed . | . . . . Combat | -11 -10 -9 -9 -------- Run | Scr Mat Mat Min Damage Taken 1770 | . 335 1104 331 Core 506 | . 84 342 80 Absorbed by Shields . | . . . . Core Remaining (%) 83 | 100 66 . . Volleys Fired 104 | . 42 62 . Largest 2 | . 2 2 . Hottest 80 | . 40 80 . Shots Fired 178 | . 84 94 . Gun 178 | . 84 94 . Cannon . | . . . . Launcher . | . . . . Special . | . . . . Kinetic 142 | . 84 58 . Thermal 36 | . . 36 . Explosive . | . . . . Electromagnetic . | . . . . Robot Hit Streak 20 | . 8 20 . Robot Miss Streak 4 | . 4 3 . Penetration Max . | . . . . Secondary Targets 2 | . 2 . . Max Gunslinging Chain 1 | . 1 . . Shots Hit Robots 122 | . 54 68 . Core Hits 45 | . 16 29 . Critical Hits 1 | . 1 . . Critical Kills . | . . . . Critical Parts Destroyed 1 | . 1 . . Melee Attacks . | . . . . Impact . | . . . . Slashing . | . . . . Piercing . | . . . . Sneak Attacks . | . . . . Combat Hostiles . | . . . . Follow-up Attacks . | . . . . Damage Inflicted 1615 | . 705 910 . Guns 1615 | . 705 910 . Cannons . | . . . . Explosions . | . . . . Melee . | . . . . Ramming . | . . . . Kinetic 1309 | . 705 604 . Thermal 306 | . . 306 . Explosive . | . . . . Electromagnetic . | . . . . Impact . | . . . . Slashing . | . . . . Piercing . | . . . . Highest Corruption . | . . . . Average Corruption . | . . . . Corruption Purged . | . . . . Overload Shots . | . . . . Overflow Damage . | . . . . Projectiles . | . . . . Explosions . | . . . . Melee . | . . . . Knockbacks . | . . . . Impact . | . . . . Kinetic . | . . . . Secondary . | . . . . Self-Inflicted Damage . | . . . . Shots . | . . . . Rammed . | . . . . Targets Rammed . | . . . . Kicked . | . . . . Crushed . | . . . . Highest Temperature 3 | . 3 . . Average Temperature 1 | . 1 . . Received Heat Transfer 621 | . 111 384 126 Siege Activations . | . . . . Robots Corrupted . | . . . . Combat Hostiles . | . . . . Parts Fried . | . . . . Impact Corruptions . | . . . . Robots Melted . | . . . . Combat Hostiles . | . . . . Parts Melted . | . . . . Heat Transferred 700 | . . 700 . Parts Sabotaged . | . . . . Parts Stolen . | . . . . Parts Stripped . | . . . . Power Chain Reactions . | . . . . Missiles Intercepted . | . . . . Alert | -11 -10 -9 -9 ------- Run | Scr Mat Mat Min Peak Influence 294 | . 294 243 42 Initial 42 | . . 39 42 Average 111 | . 153 98 39 Maximum Alert Level 1 | . 1 1 . Low Security (%) 81 | 100 72 83 100 Level 1 18 | . 27 16 . Level 2 . | . . . . Level 3 . | . . . . Level 4 . | . . . . Level 5 . | . . . . High Security . | . . . . Max Security . | . . . . Squads Dispatched 1 | . . 1 . Investigation . | . . . . Extermination . | . . . . Reinforcement 1 | . . 1 . Assault . | . . . . Garrison . | . . . . Intercept . | . . . . Construction Impeded . | . . . . Haulers Reinforced . | . . . . Stealth | -11 -10 -9 -9 --------- Run | Scr Mat Mat Min Distress Signals 2 | . . 2 . Communications Jammed . | . . . . Distress Signals . | . . . . Times Spotted 34 | . 12 19 3 Peak Tracking Total 6 | . 3 6 3 Tactical Retreats 3 | . 3 . . Traps | -11 -10 -9 -9 ------- Run | Scr Mat Mat Min Traps Triggered . | . . . . Indirectly . | . . . . Trap Hack Attempts . | . . . . Triggered . | . . . . Disarmed . | . . . . Reprogrammed . | . . . . Reused . | . . . . Traps Extracted . | . . . . Installed . | . . . . Triggered . | . . . . Machines | -11 -10 -9 -9 ---------- Run | Scr Mat Mat Min Machines Disabled 1 | . 1 . . Max in Single Turn 1 | . 1 . . Machines Sabotaged . | . . . . Garrisons Compromised . | . . . . Overloaded Fab Kills . | . . . . Fab Network Shutdowns . | . . . . Hacking | -11 -10 -9 -9 --------- Run | Scr Mat Mat Min Machines Accessed 1 | . 1 . . Terminals 1 | . 1 . . Fabricators . | . . . . Repair Stations . | . . . . Recycling Units . | . . . . Scanalyzers . | . . . . Garrison Access . | . . . . Total Hacks 2 | . 2 . . Successful 1 | . 1 . . Failed . | . . . . Catastrophic . | . . . . Database Lockouts 1 | . 1 . . Manual 2 | . 2 . . Terminals 2 | . 2 . . Fabricators . | . . . . Repair Stations . | . . . . Recycling Units . | . . . . Scanalyzers . | . . . . Garrison Access . | . . . . Terminal Hacks 1 | . 1 . . Robot Analysis 1 | . 1 . . Fabricator Hacks . | . . . . Repair Station Hacks . | . . . . Recycling Unit Hacks . | . . . . Scanalyzer . | . . . . Garrison Access Hacks . | . . . . Unauthorized Hacks . | . . . . Terminals . | . . . . Fabricators . | . . . . Repair Stations . | . . . . Recycling Units . | . . . . Scanalyzers . | . . . . Garrison Access . | . . . . Data Cores Recovered . | . . . . Used . | . . . . Hacking Detections . | . . . . Full Trace Events . | . . . . Feedback Events . | . . . . Feedback Blocked . | . . . . Robot Schematics Acquired . | . . . . Robots Built . | . . . . Matter . | . . . . Time . | . . . . Total Robot Build Rating . | . . . . Part Schematics Acquired . | . . . . Parts Built . | . . . . Matter . | . . . . Time . | . . . . Total Part Build Rating . | . . . . Parts Repaired . | . . . . Time . | . . . . Parts Recycled . | . . . . Recycled Matter . | . . . . Retrieved Matter . | . . . . Retrieved Components . | . . . . Parts Scanalyzed . | . . . . Part Schematics Acquired . | . . . . Parts Damaged . | . . . . Bothacking | -11 -10 -9 -9 ------------ Run | Scr Mat Mat Min Used RIF Installer . | . . . . Robots Hacked . | . . . . Non-combat . | . . . . Combat . | . . . . Robot Hacks Applied . | . . . . Relay Couplers Released . | . . . . Robots Rewired . | . . . . Allies Hacked . | . . . . Hacks Repelled . | . . . . Allies | -11 -10 -9 -9 -------- Run | Scr Mat Mat Min Total Allies . | . . . . Largest Group . | . . . . Highest-Rated Group . | . . . . Highest-Rated Ally . | . . . . Total Orders . | . . . . Ally Attacks . | . . . . Total Damage . | . . . . Kills . | . . . . Allies Corrupted . | . . . . Allies Melted . | . . . . Intel | -11 -10 -9 -9 ------- Run | Scr Mat Mat Min Robot Analysis Total 1 | . 1 . . Derelict Logs Recovered 1 | . . . 1 Drone Launches . | . . . . Drone Recoveries . | . . . . Exploration | -11 -10 -9 -9 ------------- Run | Scr Mat Mat Min Turns Passed 1342 | 55 545 618 124 Spaces Moved 736 | 44 341 275 76 Core 15 | 10 . 5 . Treads 112 | . . 36 76 Legs 609 | 34 341 234 . Wheels . | . . . . Hover . | . . . . Flight . | . . . . Fastest Speed 50 | 50 120 120 160 Average Speed 132 | 106 120 143 162 Slowest Speed 350 | 120 120 350 180 Overloaded Moves . | . . . . Propulsion Burnouts . | . . . . Robots Hopped . | . . . . Cave-ins Triggered . | . . . . Exploration Rate (%) 33 | 3 69 25 36 Regions Visited 3 Branch Regions 1 Pre-discovered Areas . | . . . . Known Exits Taken . | . . . . Unknown Exits Taken 3 | 1 1 1 . Scrap Searched . | . . . . Spaces Dug . | . . . . Terrain Destroyed . | . . . . Melee . | . . . . Projectile . | . . . . AOE . | . . . . Terrain Rammed . | . . . . Walls Destroyed . | . . . . Machines Disabled . | . . . . Actions | -11 -10 -9 -9 --------- Run | Scr Mat Mat Min Total 919 | 49 392 402 76 Wait 42 | . 2 40 . Move 733 | 43 340 274 76 Hop . | . . . . Pick Up 10 | . 5 5 . Fast Attach 19 | 6 1 12 . Attach . | . . . . Detach . | . . . . Swap 4 | . 1 3 . Drop 7 | . 1 6 . Fire 104 | . 42 62 . Melee . | . . . . Ram . | . . . . Kick . | . . . . Crush . | . . . . Escape Stasis . | . . . . Rewire . | . . . . Trap . | . . . . Miscellaneous . | . . . . Route ------- -11/Scrapyard -10/Materials (discovered 3 exits: [*Mat x2] / [*Min]) -9/Materials -9/Mines History --------- Turn | Location | Event 3 | -11/Scrapyard | Discovered new exit (range 16) 56 | -11/Scrapyard | Entered Materials 95 | -10/Materials | Central database locked down 286 | -10/Materials | Discovered new exit (range 9) 304 | -10/Materials | Build established: Mutant 510 | -10/Materials | Discovered new exit (range 16) 588 | -10/Materials | Discovered new exit (range 8) 601 | -10/Materials | Entered another Materials area 601 | -9/Materials | Evolved 2 slots: Utility x2 689 | -9/Materials | Discovered new exit (range 7) 1094 | -9/Materials | Core integrity fell below 50% 1124 | -9/Materials | Core integrity fell below 20% 1145 | -9/Materials | Lost 7 parts (2n3u2w) 1219 | -9/Materials | Entered Mines 1234 | -9/Mines | Learned 2 Materials zone layouts 1343 | -9/Mines | Destroyed by L-31 Rogue with Katana Last Messages --------------- 01141_ Acquired Lgt. Treads. 01144_ Acquired Hvy. Assault Rifle. 01146_ Acquired 20 matter. 01148_ Acquired 6 matter. 01150_ R-06 Scavenger destroyed. 01151_ Acquired 6 matter. 01161_ Acquired Lgt. Armor Plating. 01180_ Destroyed Com. Wheel. 01183_ Destroyed Tractor Beam. 01186_ R-06 Scavenger destroyed. 01204_ Acquired 34 matter. LOCATION=UNKNOWN GOAL=ESCAPE 01220_ K-01 Serf collects debris. 01234_ Acquired derelict log, extracted data. Data stored: Materials zone layouts (x2). 01236_ K-01 Serf collects debris. 01314_ Lgt. Armor Plating destroyed. 01328_ Lgt. Treads severed. 01331_ R-06 Scavenger collects Lgt. Treads. Map ----- +----------------------------------------------------+ | ?????????????????????????????????????????????????? | | ?????????????????????????????????????????????????? | | ?????????????????????????????????????????????????? | | ?????????????????????????????????????????????????? | | ?????????????????????????????????????????????????? | | ?????????????????????????????????????????????????? | | ?????????????????????????????????????????????????? | | ?????????????????????????????????????????????????? | | ?????????????????????????????????????????????????? | | ?????????????????????????????????????????????????? | | ?????????????????????????????????????????????????? | | ?????????????????????????????????????????????????? | | ?????????????????????????????????????????????????? | | ?????????????????????????????????????????????????? | | ?????????????????????????????????????????????????? | | ?????????????????????????????????????????????????? | | ?????????????????????????????????##??????????????? | | ???????????????????????????????? #??????????????? | | ??????????????????????????????? #??????????????? | | ?????????????????????????????? ##?????????????? | | ????????????????????????????? ####??????????? | | ???????????????????????????? ?????????? | | ???????????????????????????# ?????????? | | ??????????????????????????# ????????? | | ????????????????????????## ????????? | | ??????????????####??#####@ ????????? | | ????????# #### #### l #????????? | | ????????# #?????????? | | ????????###### t## #?????????? | | #???????# ### #?????????? | | ##??????# #??##### ??????????? | | ###????# #### ## #???????? ## ??????????? | | ##???# #??# ########?????????##??? ??????????? | | ##??# #??# #????????????????????????????????? | | ##?# #??# #????????????????????????????????? | | ### #??# #????????????????????????????????? | | #??# #????????????????????????????????? | | # #### #??# #????????????????????????????????? | | ## #??# #??# ?????????????????????????????????? | | ?# #### #### #####????????????????????????????? | | ?# ## ??????????????????????? | | ?# ########?????????????????????????????? | | ?# ##????????????????????????????????????? | | ?# ##?????????????????????????????????????? | | ?# #####??????????????????????????????????????? | | ?# ##??????????????????????????????????????????? | | ?# ##??????????????????????????????????????????? | | ?## #??????????????????????????????????????????? | | ??## #?????????????????????????????????????????? | | ???## #?????????????????????????????????????????? | +----------------------------------------------------+ Best States ------------- Heat Dissipation 42 Energy Generation 10 Energy Capacity 250 Matter Stores 300 Matter Capacity 300 Sight Range 16 Terrain Scan Density 10 Armor Coverage 150 Weapon Shielding 33 Evasion (%) 40 Targeting Accuracy 6 Recoil Reduction 2 Item Schematics ----------------- None Robot Schematics ------------------ None Fabricated ------------ Nothing Alien Tech Used ----------------- None Achievements -------------- None Challenges ------------ None Game ------ Seed KineticHackingThrower Manual? 0 Play Time 00:07:50 Cumulative 201.6 hours Start 2021.05.11 @ 19:43:11 End 2021.05.11 @ 19:55:10 Sessions 1 Manual Loads 0 Difficulty Rogue Special Mode None Game No. 390 Rogue 235 Adventurer 148 Explorer 7 Win Type - Total 5 Types 5/0/0/0/0/0/0/0/0 Lore% 73 Gallery% 84 Achievement% 61 Wizard Run 0 Options --------- ASCII 0 Keyboard 0 Movement Numpad Keybinds 0 Fullscreen 1 Font 14/X11 Map View 84x54 Tactical HUD 1 Map Filters NONE Filters NONE Steam 1 RUN: aad30b83-e86f-4f3c-a362-79490c4c9a94